bitfinex/quotes_BTCUSD_20250812
["timestamp","ask_amount","ask_price","bid_price","bid_amount"]
[1755019117901,0.7795116,119830.0,119820.0,0.33536]
[1755019120558,0.21762727,119830.0,119820.0,0.33536]
[1755019122408,0.19454727,119830.0,119820.0,0.33536]
[1755019123481,0.2770317,119830.0,119820.0,0.33536]
[1755019124521,0.83891603,119830.0,119820.0,0.33536]
[1755019125296,0.2770317,119830.0,119820.0,0.33536]
[1755019125519,0.19454727,119830.0,119820.0,0.33536]
[1755019126536,0.19140727,119830.0,119820.0,0.50424704]
[1755019126735,0.19140727,119830.0,119820.0,0.33733]
[1755019127352,0.19140727,119830.0,119820.0,0.50424704]
[1755019128479,0.02293416,119830.0,119820.0,1.15179462]
[1755019129858,0.02293416,119830.0,119820.0,0.58991029]
[1755019130081,0.02293416,119830.0,119820.0,1.15179462]
[1755019131017,0.01593416,119830.0,119820.0,1.15179462]
[1755019131227,0.01693416,119830.0,119820.0,1.15179462]
[1755019132125,0.01693416,119830.0,119820.0,0.58991029]
[1755019132568,0.18383727,119830.0,119820.0,0.58991029]
[1755019132803,0.20467532,119830.0,119820.0,0.58991029]
[1755019133524,0.20467532,119830.0,119820.0,0.44984029]
[1755019133720,0.20792532,119830.0,119820.0,0.58492029]
[1755019134284,0.20467532,119830.0,119820.0,0.58492029]
[1755019134654,0.20467532,119830.0,119820.0,0.58689029]
[1755019136972,0.20467532,119830.0,119820.0,0.28489325]
[1755019137213,0.76980965,119830.0,119820.0,0.41796325]
[1755019137416,0.76980965,119830.0,119820.0,0.33524]
[1755019137621,0.20792532,119830.0,119820.0,0.33524]
[1755019137834,0.76980965,119830.0,119820.0,0.33524]
[1755019138192,0.76980965,119830.0,119820.0,0.13504]
[1755019139806,0.20792532,119830.0,119820.0,0.13504]
[1755019140614,0.16692884,119820.0,119800.0,0.97368214]
[1755019140758,0.18439356,119810.0,119800.0,0.31628939]
[1755019140969,0.18764356,119810.0,119800.0,0.42624039]
[1755019142040,0.18764356,119810.0,119800.0,0.20024]
[1755019142322,0.75052789,119810.0,119800.0,0.33524]
[1755019142508,0.27112799,119810.0,119800.0,0.33524]
[1755019142713,0.75052789,119810.0,119800.0,0.33524]
[1755019145338,0.18864356,119810.0,119800.0,0.33524]
[1755019145540,0.75052789,119810.0,119800.0,0.33524]
[1755019145946,0.75052789,119810.0,119800.0,0.20024]
[1755019146160,0.75052789,119810.0,119800.0,0.33524]
[1755019146364,0.83301232,119810.0,119800.0,0.20024]
[1755019146562,0.83301232,119810.0,119800.0,0.33524]
[1755019147018,0.27112799,119810.0,119800.0,0.33524]
[1755019147231,0.18864356,119810.0,119800.0,0.33524]
[1755019147470,0.74952789,119810.0,119800.0,0.33524]
[1755019147835,0.75252789,119810.0,119800.0,0.33524]
[1755019148041,0.19064356,119810.0,119800.0,0.33524]
[1755019148324,0.75252789,119810.0,119800.0,0.33524]
[1755019148592,0.83501232,119810.0,119800.0,0.33524]
[1755019150339,0.27312799,119810.0,119800.0,0.33524]
[1755019150567,0.75252789,119810.0,119800.0,0.33524]
[1755019150795,0.19064356,119810.0,119800.0,0.33524]
[1755019151260,0.75252789,119810.0,119800.0,0.33524]
[1755019151466,0.19064356,119810.0,119800.0,0.33524]
[1755019151672,0.75252789,119810.0,119800.0,0.33524]
[1755019151877,0.83501232,119810.0,119800.0,0.33524]
[1755019152303,0.27312799,119810.0,119800.0,0.33524]
[1755019152948,0.83501232,119810.0,119800.0,0.33524]
[1755019156799,0.27312799,119810.0,119800.0,0.33524]
[1755019157261,0.83501232,119810.0,119800.0,0.33524]
[1755019157915,0.27312799,119810.0,119800.0,0.33524]
[1755019158400,0.83501232,119810.0,119800.0,0.33524]
[1755019159578,0.16993097,119810.0,119800.0,0.90234433]
[1755019160080,0.18538356,119810.0,119800.0,0.90234433]
[1755019160315,0.16993097,119810.0,119800.0,0.90234433]
[1755019160530,0.18538356,119810.0,119800.0,0.34046]
[1755019162073,0.18736356,119810.0,119800.0,0.20546]
[1755019162306,0.26984799,119810.0,119800.0,0.34038]
[1755019162566,0.83173232,119810.0,119800.0,0.34038]
[1755019162775,0.83173232,119810.0,119800.0,0.33718]
[1755019163985,0.26984799,119810.0,119800.0,0.33718]
[1755019164207,0.74924789,119810.0,119800.0,0.34038]
[1755019164413,0.18736356,119810.0,119800.0,0.34038]
[1755019164629,0.18538356,119810.0,119800.0,0.34038]
[1755019165075,0.74726789,119810.0,119800.0,0.34038]
[1755019166806,0.18538356,119810.0,119800.0,0.34038]
[1755019167229,0.26618394,119810.0,119800.0,0.34038]
[1755019167741,0.82806827,119810.0,119800.0,0.34038]
[1755019167977,0.16993097,119810.0,119800.0,1.06920923]
[1755019168209,0.18538356,119810.0,119800.0,0.5073249]
[1755019168403,0.18538356,119810.0,119800.0,1.06920923]
[1755019168669,0.18538356,119810.0,119800.0,0.5073249]
[1755019169346,0.18538356,119810.0,119800.0,0.34038]
[1755019169798,0.18538356,119810.0,119800.0,0.5073249]
[1755019170264,0.18538356,119810.0,119800.0,0.34038]
[1755019171626,0.74726789,119810.0,119800.0,0.34038]
[1755019172110,0.82975232,119810.0,119800.0,0.34038]
[1755019172344,0.74726789,119810.0,119800.0,0.34038]
[1755019172857,0.18538356,119810.0,119800.0,0.34038]
[1755019173107,0.74726789,119810.0,119800.0,0.34038]
[1755019174223,0.18538356,119810.0,119800.0,0.34038]
[1755019174442,0.74726789,119810.0,119800.0,0.34038]
[1755019174687,0.18538356,119810.0,119800.0,0.34038]
[1755019175127,0.74726789,119810.0,119800.0,0.34038]
[1755019175629,0.18538356,119810.0,119800.0,0.34038]
[1755019175836,0.74726789,119810.0,119800.0,0.34038]
[1755019176266,0.76392384,119810.0,119800.0,0.34038]
[1755019176481,0.18241143,119790.0,119780.0,0.23381309]
[1755019176708,0.74429576,119790.0,119780.0,0.45364634]
[1755019177147,0.74429576,119790.0,119780.0,0.45677634]
[1755019177336,0.01545259,119790.0,119780.0,0.45677634]
[1755019177797,0.01545259,119790.0,119780.0,0.45682522]
[1755019178034,0.01645259,119790.0,119780.0,0.45682522]
[1755019181675,0.03479358,119790.0,119780.0,0.45682522]
[1755019181896,0.03479358,119790.0,119780.0,1.01870955]
[1755019181897,0.01645259,119790.0,119780.0,1.01870955]
[1755019182347,0.01645259,119790.0,119780.0,0.45682522]
[1755019183930,0.01645259,119790.0,119780.0,1.01870955]
[1755019185189,0.01645259,119790.0,119780.0,0.45682522]
[1755019185417,0.03479358,119790.0,119780.0,0.45682522]
[1755019185835,0.01645259,119790.0,119780.0,0.45682522]
[1755019186487,0.01851259,119790.0,119780.0,0.31873522]
[1755019186759,0.01645259,119790.0,119780.0,0.45698522]
[1755019187629,0.01645259,119790.0,119780.0,1.01886955]
[1755019188109,0.01645259,119790.0,119780.0,0.45698522]
[1755019188339,0.01645259,119790.0,119780.0,1.01886955]
[1755019188512,0.18341143,119790.0,119780.0,1.01886955]
[1755019188728,0.01645259,119790.0,119780.0,1.01886955]
[1755019189113,0.01645259,119790.0,119780.0,0.14654423]
[1755019189114,0.18547143,119790.0,119780.0,0.14654423]
[1755019189332,0.76917275,119790.0,119780.0,0.13496888]
[1755019190795,0.76817275,119790.0,119780.0,0.13496888]
[1755019191231,0.77017275,119790.0,119780.0,0.13496888]
[1755019191672,0.20928842,119790.0,119780.0,0.13496888]
[1755019192134,0.77117275,119790.0,119780.0,0.13496888]
[1755019193220,0.78862177,119790.0,119780.0,4.888e-05]
[1755019193442,0.78862177,119790.0,119780.0,0.13500888]
[1755019193901,0.81306177,119790.0,119780.0,0.13500888]
[1755019194125,0.89578502,119790.0,119780.0,0.13500888]
[1755019194767,0.89578502,119790.0,119780.0,4.888e-05]
[1755019194968,0.92084802,119790.0,119780.0,0.13500888]
[1755019195191,0.91984802,119790.0,119780.0,0.13500888]
[1755019195394,0.91784802,119790.0,119780.0,0.13500888]
[1755019196056,0.91784802,119790.0,119780.0,4.888e-05]
[1755019196273,0.91884802,119790.0,119780.0,0.13500888]
[1755019197201,0.92184802,119790.0,119780.0,0.13500888]
[1755019199371,0.35996369,119790.0,119780.0,0.13500888]
[1755019199990,0.92184802,119790.0,119780.0,0.13500888]
[1755019200193,0.35996369,119790.0,119780.0,0.13500888]
[1755019200585,0.92184802,119790.0,119780.0,0.13500888]
[1755019202153,0.89740802,119790.0,119780.0,0.13500888]
[1755019202563,0.94646802,119790.0,119780.0,1e-08]
[1755019202732,0.1824672,119750.0,119740.0,0.00295]
[1755019202929,0.21741523,119750.0,119740.0,0.14007]
[1755019204082,0.21741523,119750.0,119740.0,0.14107]
[1755019204260,0.21741523,119750.0,119740.0,0.14155925]
[1755019204670,0.21741523,119750.0,119740.0,0.14355925]
[1755019206572,0.21741523,119750.0,119740.0,0.14255925]
[1755019206772,0.21741523,119750.0,119740.0,0.1510516]
[1755019207184,0.23486425,119750.0,119740.0,0.14255925]
[1755019207344,0.1824672,119750.0,119740.0,0.70244358]
[1755019207977,0.1824672,119750.0,119740.0,0.70344358]
[1755019208842,0.1824672,119750.0,119740.0,0.70244358]
[1755019209269,0.1834672,119750.0,119740.0,0.70244358]
[1755019209917,0.19502445,119750.0,119740.0,0.14055925]
[1755019210148,0.19502445,119750.0,119740.0,0.70244358]
[1755019210785,0.19704445,119750.0,119740.0,0.14055925]
[1755019212547,0.19502445,119750.0,119740.0,0.14055925]
[1755019213059,0.19502445,119750.0,119740.0,0.14051925]
[1755019213446,0.19502445,119750.0,119740.0,0.00559925]
[1755019213668,0.19502445,119750.0,119740.0,0.14051925]
[1755019214094,0.1834672,119750.0,119740.0,0.86943214]
[1755019214213,0.1834672,119750.0,119740.0,0.95215539]
[1755019214421,0.1834672,119750.0,119740.0,0.2232425]
[1755019214632,0.1834672,119750.0,119740.0,0.78512683]
[1755019215474,0.1834672,119750.0,119740.0,0.95215539]
[1755019216334,0.01645259,119750.0,119740.0,0.95215539]
[1755019217402,0.01645259,119750.0,119740.0,0.97721939]
[1755019218017,0.001,119750.0,119740.0,0.97721939]
[1755019218260,0.01645259,119750.0,119740.0,0.97721939]
[1755019218938,0.01645259,119750.0,119740.0,0.41533506]
[1755019219144,0.01645259,119750.0,119740.0,0.97721939]
[1755019219363,0.01645259,119750.0,119740.0,3.40432339]
[1755019219364,0.001,119750.0,119740.0,3.40432339]
[1755019219563,0.01545259,119750.0,119740.0,3.40432339]
[1755019220015,0.01545259,119760.0,119750.0,0.31701461]
[1755019220226,0.01545259,119760.0,119750.0,0.99537806]
[1755019220942,0.01545259,119760.0,119750.0,1.19573806]
[1755019221640,0.01545259,119760.0,119750.0,0.63485373]
[1755019221859,0.01545259,119760.0,119750.0,1.19673806]
[1755019222284,0.17535491,119780.0,119750.0,0.64320446]
[1755019222515,0.18243931,119770.0,119760.0,0.22251883]
[1755019222694,0.18243931,119770.0,119760.0,0.22271325]
[1755019223162,0.01545259,119770.0,119760.0,0.80965658]
[1755019223372,0.01545259,119770.0,119760.0,0.24777225]
[1755019223588,0.01545259,119770.0,119760.0,0.97665724]
[1755019224018,0.01545259,119770.0,119760.0,0.41477291]
[1755019224227,0.01545259,119770.0,119760.0,0.97665724]
[1755019224439,0.01545259,119770.0,119760.0,0.41477291]
[1755019224682,0.16695884,119790.0,119770.0,0.16698665]
[1755019224933,0.0345875,119790.0,119780.0,0.69924433]
[1755019225162,0.01545259,119790.0,119780.0,0.14031]
[1755019225377,0.01545259,119790.0,119780.0,0.14227471]
[1755019225599,0.18502016,119790.0,119780.0,0.14227471]
[1755019225831,0.18502016,119790.0,119780.0,0.22303325]
[1755019225832,0.18446143,119790.0,119780.0,0.22303325]
[1755019226041,0.18446143,119790.0,119780.0,0.78491758]
[1755019226271,0.18460792,119790.0,119780.0,0.22303325]
[1755019227120,0.18460792,119790.0,119780.0,0.78491758]
[1755019227348,0.18560792,119790.0,119780.0,0.23153573]
[1755019227564,0.22238233,119790.0,119780.0,0.23153573]
[1755019227994,0.78748666,119790.0,119780.0,0.22762573]
[1755019228223,0.18243931,119770.0,119760.0,0.025059]
[1755019228434,0.18243931,119770.0,119760.0,0.24490225]
[1755019228435,0.18448931,119770.0,119760.0,0.24490225]
[1755019228678,0.74637364,119770.0,119760.0,0.10778225]
[1755019228892,0.18245325,119760.0,119750.0,0.20863007]
[1755019229108,0.18245325,119760.0,119750.0,0.33784]
[1755019229109,0.18771325,119760.0,119750.0,0.33784]
[1755019229326,0.74959758,119760.0,119750.0,0.33784]
[1755019229564,0.18771325,119760.0,119750.0,0.33784]
[1755019230000,0.74959758,119760.0,119750.0,0.33784]
[1755019230430,0.74959758,119760.0,119750.0,0.20036]
[1755019230652,0.18248115,119740.0,119730.0,0.0083642]
[1755019230876,0.18248115,119740.0,119710.0,0.1531]
[1755019230877,0.18250905,119720.0,119710.0,0.1531]
[1755019231108,0.18250905,119720.0,119710.0,0.29326]
[1755019231573,0.18250905,119720.0,119710.0,0.30139762]
[1755019231763,0.18250905,119720.0,119710.0,0.32646662]
[1755019232004,0.18250905,119720.0,119710.0,0.32695587]
[1755019232446,0.18250905,119720.0,119710.0,0.40967912]
[1755019232679,0.74636338,119720.0,119710.0,0.1082815]
[1755019232898,0.18766905,119720.0,119710.0,0.16351825]
[1755019233117,0.18766905,119720.0,119710.0,0.16355825]
[1755019233337,0.18766905,119720.0,119710.0,0.16455825]
[1755019233799,0.18447905,119720.0,119710.0,0.16355825]
[1755019234248,0.18766905,119720.0,119710.0,0.16355825]
[1755019234892,0.18866905,119720.0,119710.0,0.16355825]
[1755019235704,0.18547905,119720.0,119710.0,0.16355825]
[1755019236471,0.18350905,119720.0,119710.0,0.16877825]
[1755019236899,0.001,119720.0,119710.0,1.31807179]
[1755019237114,0.001,119720.0,119710.0,1.98010579]
[1755019238374,0.01545259,119730.0,119720.0,0.16705646]
[1755019238579,0.01545259,119730.0,119720.0,0.80139958]
[1755019238779,0.01545259,119730.0,119720.0,0.80449958]
[1755019239546,0.01545259,119730.0,119720.0,0.25499971]
[1755019239776,0.01545259,119730.0,119720.0,0.80749958]
[1755019240658,0.01545259,119730.0,119720.0,1.35234558]
[1755019241376,0.01545259,119740.0,119730.0,0.31704251]
[1755019241605,0.01545259,119740.0,119730.0,1.09252563]
[1755019242235,0.01545259,119740.0,119730.0,0.54302576]
[1755019242445,0.01545259,119740.0,119730.0,1.09252563]
[1755019242897,0.01545259,119740.0,119730.0,1.09452563]
[1755019243116,0.01545259,119740.0,119730.0,1.10287775]
[1755019243327,0.01545259,119740.0,119730.0,0.55337788]
[1755019243533,0.01545259,119740.0,119730.0,0.55341788]
[1755019243534,0.03396038,119740.0,119730.0,0.55341788]
[1755019243745,0.03597038,119740.0,119730.0,0.55341788]
[1755019244010,0.03396038,119740.0,119730.0,0.55341788]
[1755019244210,0.03396038,119740.0,119730.0,0.55441788]
[1755019244479,0.01545259,119740.0,119730.0,1.10391775]
[1755019244688,0.01545259,119740.0,119730.0,0.55241788]
[1755019244918,0.01545259,119740.0,119730.0,0.55141788]
[1755019245133,0.01545259,119740.0,119730.0,1.10191775]
[1755019245363,0.18770115,119740.0,119730.0,0.23372325]
[1755019245583,0.18770115,119740.0,119730.0,0.39686925]
[1755019246005,0.22317304,119740.0,119730.0,0.176066]
[1755019246243,0.22317304,119740.0,119730.0,0.14024]
[1755019247438,0.77267291,119740.0,119730.0,0.13924]
[1755019247640,0.77367291,119740.0,119730.0,0.13924]
[1755019248470,0.79112193,119740.0,119730.0,0.13924]
[1755019249530,0.24162206,119740.0,119730.0,0.13924]
[1755019249726,0.79112193,119740.0,119730.0,0.13924]
[1755019250950,0.78791193,119740.0,119730.0,0.13924]
[1755019251155,0.23841206,119740.0,119730.0,0.13924]
[1755019251396,0.78791193,119740.0,119730.0,0.13924]
[1755019251590,0.23841206,119740.0,119730.0,0.13924]
[1755019251787,0.75565004,119740.0,119730.0,0.13924]
[1755019253699,0.20615017,119740.0,119730.0,0.13924]
[1755019253931,0.75565004,119740.0,119730.0,0.13924]
[1755019254327,0.20615017,119740.0,119730.0,0.13924]
[1755019254496,0.18348115,119740.0,119730.0,0.14446]
[1755019254705,0.01645259,119740.0,119730.0,0.31150251]
[1755019254913,0.18348115,119740.0,119730.0,0.31150251]
[1755019255114,0.18348115,119740.0,119730.0,0.14446]
[1755019255747,0.73499102,119740.0,119730.0,0.14446]
[1755019255954,0.26797558,119740.0,119730.0,0.14136]
[1755019256156,0.18549115,119740.0,119730.0,0.14136]
[1755019256373,0.00301,119740.0,119730.0,0.30840251]
[1755019256632,0.01645259,119740.0,119730.0,0.39422576]
[1755019256838,0.01645259,119740.0,119730.0,0.22718325]
[1755019257054,0.01906241,119740.0,119730.0,0.22718325]
[1755019257476,0.01806241,119740.0,119730.0,0.22718325]
[1755019257677,0.18509097,119740.0,119730.0,0.22718325]
[1755019257905,0.18248115,119740.0,119730.0,0.22718325]
[1755019258118,0.01545259,119740.0,119730.0,0.22718325]
[1755019258324,0.01545259,119740.0,119730.0,0.22818325]
[1755019258738,0.18509097,119740.0,119730.0,0.22818325]
[1755019258937,0.18248115,119740.0,119730.0,0.22818325]
[1755019259374,0.01545259,119740.0,119730.0,0.22818325]
[1755019260023,0.18248115,119740.0,119730.0,0.22818325]
[1755019261285,0.16701779,119750.0,119730.0,0.54522576]
[1755019261491,0.17535069,119760.0,119730.0,0.45940251]
[1755019261492,0.01545259,119740.0,119730.0,0.45940251]
[1755019262138,0.01545259,119740.0,119730.0,0.46235251]
[1755019263430,0.01545259,119740.0,119730.0,0.54507576]
[1755019264691,0.57791346,119740.0,119730.0,0.54507576]
[1755019265343,0.01545259,119740.0,119730.0,0.37803325]
[1755019265502,0.20274793,119740.0,119730.0,0.37296325]
[1755019265704,0.7681988,119740.0,119730.0,0.37812325]
[1755019266156,0.74995202,119740.0,119730.0,0.001]
[1755019266368,0.74995202,119740.0,119730.0,0.1454]
[1755019266756,0.74995202,119740.0,119730.0,0.14556]
[1755019267110,0.18250905,119720.0,119710.0,0.20088925]
[1755019267330,1.30945079,119720.0,119710.0,0.34544925]
[1755019267540,1.31244079,119720.0,119710.0,0.34544925]
[1755019268016,0.18751905,119720.0,119710.0,0.34544925]
[1755019268219,1.31244079,119720.0,119710.0,0.34544925]
[1755019268654,0.18751905,119720.0,119710.0,0.34544925]
[1755019269077,0.73719063,119720.0,119710.0,0.34544925]
[1755019270167,0.18250905,119720.0,119710.0,0.35040925]
[1755019270613,0.18250905,119720.0,119710.0,0.4331325]
[1755019271466,0.01545259,119720.0,119710.0,0.75020292]
[1755019271648,0.03648175,119720.0,119710.0,0.5831325]
[1755019271966,0.1851193,119720.0,119710.0,0.5831325]
[1755019272141,0.18250905,119720.0,119710.0,0.5831325]
[1755019273791,0.01545259,119720.0,119710.0,0.75020292]
[1755019274008,0.01545259,119720.0,119710.0,0.75120292]
[1755019274221,0.01545259,119720.0,119710.0,0.5841325]
[1755019274399,0.18250905,119720.0,119710.0,0.5841325]
[1755019276448,0.18452905,119720.0,119710.0,0.5791725]
[1755019276642,0.73420063,119720.0,119710.0,0.5791725]
[1755019276920,0.73420063,119720.0,119710.0,0.5811825]
[1755019277124,0.73719063,119720.0,119710.0,0.4346125]
[1755019277303,0.18452905,119720.0,119710.0,0.5810625]
[1755019277514,0.73420063,119720.0,119710.0,0.5810625]
[1755019277727,0.73719063,119720.0,119710.0,0.4290525]
[1755019277938,0.18751905,119720.0,119710.0,0.4290525]
[1755019278139,0.73719063,119720.0,119710.0,0.4290525]
[1755019278578,0.81967506,119720.0,119710.0,0.20188925]
[1755019278795,0.81967506,119720.0,119710.0,0.20088925]
[1755019279027,0.81967506,119720.0,119710.0,0.34548925]
[1755019279240,0.83712408,119720.0,119710.0,0.20088925]
[1755019279579,0.2874525,119720.0,119710.0,0.14516925]
[1755019279758,0.75463965,119720.0,119710.0,0.14516925]
[1755019280237,1.41022448,119720.0,119710.0,0.00048925]
[1755019280460,0.8605529,119720.0,119710.0,0.14516925]
[1755019280893,0.86892846,119720.0,119710.0,0.14516925]
[1755019281347,0.87092846,119720.0,119710.0,0.14516925]
[1755019281591,0.95341289,119720.0,119710.0,0.14516925]
[1755019282239,0.95641289,119720.0,119710.0,0.14516925]
[1755019283360,0.40674131,119720.0,119710.0,0.14516925]
[1755019283575,0.95641289,119720.0,119710.0,0.14516925]
[1755019284022,0.40674131,119720.0,119710.0,0.14516925]
[1755019284266,0.95641289,119720.0,119710.0,0.14516925]
[1755019284478,0.40674131,119720.0,119710.0,0.14516925]
[1755019284712,0.39836575,119720.0,119710.0,0.14516925]
[1755019284929,0.82691031,119720.0,119710.0,0.14516925]
[1755019285360,0.8423629,119720.0,119710.0,0.14516925]
[1755019285583,0.75963965,119720.0,119710.0,0.14516925]
[1755019286444,0.75664965,119720.0,119710.0,0.14516925]
[1755019287398,0.75963965,119720.0,119710.0,0.14516925]
[1755019287628,0.84212408,119720.0,119710.0,0.14516925]
[1755019288761,0.2924525,119720.0,119710.0,0.14516925]
[1755019288976,0.75963965,119720.0,119710.0,0.14516925]
[1755019290570,0.75963965,119720.0,119710.0,0.00048925]
[1755019292136,0.20996807,119720.0,119710.0,0.00048925]
[1755019292339,0.75963965,119720.0,119710.0,0.00048925]
[1755019294330,0.75664965,119720.0,119710.0,0.00566925]
[1755019294523,0.83913408,119720.0,119710.0,0.00566925]
[1755019294726,0.83913408,119720.0,119710.0,0.00246925]
[1755019295172,0.2894625,119720.0,119710.0,0.00246925]
[1755019295406,0.75664965,119720.0,119710.0,0.00246925]
[1755019295740,0.75976965,119720.0,119710.0,0.00048925]
[1755019296682,0.21009807,119720.0,119710.0,0.00048925]
[1755019297095,0.75976965,119720.0,119710.0,0.00048925]
[1755019297926,0.21009807,119720.0,119710.0,0.00048925]
[1755019298157,0.79748487,119720.0,119710.0,0.00048925]
[1755019298583,0.24781329,119720.0,119710.0,0.00048925]
[1755019298793,0.79748487,119720.0,119710.0,0.00048925]
[1755019302360,0.24267329,119720.0,119710.0,0.00566925]
[1755019302540,0.75462965,119720.0,119710.0,0.00566925]
[1755019303226,0.20495807,119720.0,119710.0,0.00566925]
[1755019303647,0.75462965,119720.0,119710.0,0.00566925]
[1755019304101,0.20495807,119720.0,119710.0,0.00566925]
[1755019304314,0.75462965,119720.0,119710.0,0.00566925]
[1755019304859,0.20495807,119720.0,119710.0,0.00566925]
[1755019305060,0.75462965,119720.0,119710.0,0.00566925]
[1755019305255,0.20495807,119720.0,119710.0,0.00566925]
[1755019305462,0.75462965,119720.0,119710.0,0.00566925]
[1755019305662,0.73718063,119720.0,119710.0,0.00566925]
[1755019305880,0.18750905,119720.0,119710.0,0.00566925]
[1755019306374,0.18750905,119720.0,119710.0,0.01384741]
[1755019307180,0.005,119720.0,119710.0,0.26560883]
[1755019307520,0.18450905,119720.0,119710.0,0.26364108]
[1755019308137,0.18550905,119720.0,119710.0,0.26364108]
[1755019308551,0.17005646,119720.0,119710.0,0.26364108]
[1755019308931,0.18550905,119720.0,119710.0,0.26364108]
[1755019310165,0.17005646,119720.0,119710.0,0.26364108]
[1755019310366,0.16805646,119720.0,119710.0,0.26364108]
[1755019310577,0.18350905,119720.0,119710.0,0.09657066]
[1755019310782,0.18250905,119720.0,119710.0,0.26560883]
[1755019310969,0.18250905,119720.0,119710.0,0.26364108]
[1755019311392,0.74513131,119720.0,119710.0,0.09657066]
[1755019311600,0.74513131,119720.0,119710.0,0.09853841]
[1755019311805,0.18250905,119720.0,119710.0,0.09853841]
[1755019312043,0.18250905,119720.0,119710.0,0.26560883]
[1755019312183,0.18250905,119720.0,119710.0,0.26364108]
[1755019312573,0.18250905,119720.0,119710.0,0.09657066]
[1755019312788,0.74513131,119720.0,119710.0,0.09853841]
[1755019314615,0.74513131,119720.0,119710.0,0.09657066]
[1755019314900,0.74513131,119720.0,119710.0,0.24053066]
[1755019315116,0.18250905,119720.0,119710.0,0.24053066]
[1755019315536,0.74513131,119720.0,119710.0,0.24053066]
[1755019316766,0.74712131,119720.0,119710.0,0.23535066]
[1755019317009,0.27010348,119720.0,119710.0,0.14428925]
[1755019317179,1.31286357,119720.0,119710.0,0.14428925]
[1755019318140,0.18761905,119720.0,119710.0,0.14428925]
[1755019318352,1.31486357,119720.0,119710.0,0.14428925]
[1755019319419,0.18961905,119720.0,119710.0,0.14428925]
[1755019319618,1.31486357,119720.0,119710.0,0.14428925]
[1755019319830,1.31486357,119720.0,119710.0,0.00048925]
[1755019319831,1.397348,119720.0,119710.0,0.00048925]
[1755019320064,1.41479702,119720.0,119710.0,0.14500925]
[1755019320280,1.41579702,119720.0,119710.0,0.14500925]
[1755019322733,0.75012131,119720.0,119710.0,0.14712925]
[1755019322972,0.74813131,119720.0,119710.0,0.15020925]
[1755019325523,0.18745905,119720.0,119710.0,0.15020925]
[1755019325738,0.18745905,119720.0,119710.0,0.2329325]
[1755019325739,0.18550905,119720.0,119710.0,0.2329325]
[1755019325974,0.17005646,119720.0,119710.0,0.2329325]
[1755019326176,0.18550905,119720.0,119710.0,0.2329325]
[1755019326386,0.17005646,119720.0,119710.0,0.2329325]
[1755019326624,0.18450905,119720.0,119710.0,0.2329325]
[1755019326830,0.18450905,119720.0,119710.0,0.40000292]
[1755019327387,0.16705646,119720.0,119710.0,0.40000292]
[1755019327791,0.18250905,119720.0,119710.0,0.42607292]
[1755019329185,0.01545259,119720.0,119710.0,0.42607292]
[1755019329806,0.18250669,119730.0,119720.0,0.16705646]
[1755019330167,0.18250669,119730.0,119720.0,0.08989058]
[1755019330626,0.18250669,119730.0,119720.0,0.25694704]
[1755019330858,0.18250669,119730.0,119720.0,0.08792325]
[1755019331071,0.18250669,119730.0,119720.0,0.25694704]
[1755019331284,0.18250669,119730.0,119720.0,0.25497971]
[1755019332052,0.18250669,119730.0,119720.0,0.08792325]
[1755019333256,0.18250669,119730.0,119720.0,0.25497971]
[1755019333474,0.18250669,119730.0,119720.0,0.08792325]
[1755019334105,0.18250669,119730.0,119720.0,0.25497971]
[1755019335522,0.19083257,119740.0,119730.0,0.16704251]
[1755019335727,0.19083257,119740.0,119730.0,0.39581264]
[1755019335955,0.19083257,119740.0,119730.0,0.23200325]
[1755019338164,0.19083257,119740.0,119730.0,0.24041001]
[1755019338369,0.19083257,119740.0,119730.0,0.40745252]
[1755019338575,0.02380401,119740.0,119730.0,0.40745252]
[1755019338772,0.18248115,119740.0,119730.0,0.40745252]
[1755019339615,0.01545259,119740.0,119730.0,0.43251752]
[1755019340036,0.18248115,119740.0,119730.0,0.43251752]
[1755019344831,0.18248115,119740.0,119730.0,0.43028798]
[1755019345288,0.01545259,119740.0,119730.0,0.43028798]
[1755019345494,0.18248115,119740.0,119730.0,0.43028798]
[1755019348493,0.744923,119740.0,119730.0,0.43028798]
[1755019348868,0.18248115,119740.0,119730.0,0.43028798]
[1755019349069,0.744923,119740.0,119730.0,0.42528798]
[1755019349487,0.18248115,119740.0,119730.0,0.42528798]
[1755019352194,0.01545259,119740.0,119730.0,0.42528798]
[1755019352832,0.18248115,119740.0,119730.0,0.42528798]
[1755019360404,0.68248115,119740.0,119730.0,0.42528798]
[1755019360807,0.51545259,119740.0,119730.0,0.42528798]
[1755019361243,0.68248115,119740.0,119730.0,0.42528798]
[1755019361584,0.51545259,119740.0,119730.0,0.42528798]
[1755019366127,0.5,119740.0,119730.0,1.18772983]
[1755019366393,0.5,119740.0,119730.0,2.31794483]
[1755019366621,0.48630178,119740.0,119730.0,1.75550298]
[1755019366838,0.47628283,119740.0,119730.0,2.31794483]
[1755019367923,0.47628283,119740.0,119730.0,2.32094483]
[1755019368578,0.47628283,119740.0,119730.0,2.32494483]
[1755019368959,0.47628283,119740.0,119730.0,2.32394483]
[1755019369367,0.47628283,119740.0,119730.0,2.32594483]
[1755019371660,0.47628283,119740.0,119730.0,1.76350298]
[1755019371865,0.47628283,119740.0,119730.0,2.32594483]
[1755019376757,0.4662644,119740.0,119730.0,2.32594483]
[1755019377530,0.4662644,119740.0,119730.0,2.34339385]
[1755019380216,0.4662644,119740.0,119730.0,2.36010385]
[1755019380462,0.4662644,119740.0,119730.0,2.34339385]
[1755019384618,0.4662644,119740.0,119730.0,1.780952]
[1755019384945,0.4662644,119740.0,119730.0,2.34339385]
[1755019385982,0.4662644,119740.0,119730.0,1.780952]
[1755019386199,0.4662644,119740.0,119730.0,2.34339385]
[1755019386872,0.45624627,119740.0,119730.0,2.34339385]
[1755019389026,0.45835627,119740.0,119730.0,1.61634298]
[1755019389253,0.46144627,119740.0,119730.0,1.75502298]
[1755019389475,0.46144627,119740.0,119730.0,0.90738098]
[1755019389727,0.46144627,119740.0,119730.0,0.76658098]
[1755019389988,0.46144627,119740.0,119730.0,0.76387798]
[1755019390707,0.46144627,119740.0,119730.0,1.32631983]
[1755019390929,0.46144627,119740.0,119730.0,0.76387798]
[1755019391165,0.46144627,119740.0,119730.0,1.32631983]
[1755019391850,0.46144627,119740.0,119730.0,1.32471599]
[1755019392272,0.46144627,119740.0,119730.0,0.76227414]
[1755019392490,0.46144627,119740.0,119730.0,1.32471599]
[1755019396757,0.46144627,119740.0,119730.0,0.76227414]
[1755019397028,0.46144627,119740.0,119730.0,1.32471599]
[1755019397245,0.46144627,119740.0,119730.0,1.18407599]
[1755019397464,0.46144627,119740.0,119730.0,1.32439599]
[1755019399474,0.46144627,119740.0,119730.0,0.76195414]
[1755019399679,0.62847483,119740.0,119730.0,0.98407599]
[1755019399882,0.46144627,119740.0,119730.0,0.56159414]
[1755019400507,0.46144627,119740.0,119730.0,1.12403599]
[1755019400952,0.46144627,119740.0,119730.0,0.56159414]
[1755019401174,0.46144627,119740.0,119730.0,1.12403599]